bitfinex/quotes_ETHUSD_20250526
["timestamp","ask_amount","ask_price","bid_price","bid_amount"]
[1748270911313,0.78537504,2546.6,2546.2,0.7705]
[1748270911553,0.8287,2546.9,2546.2,0.7705]
[1748270911752,0.78527407,2546.9,2546.3,3.92717265]
[1748270911959,3.925,2547.0,2546.2,0.7705]
[1748270912164,0.78531917,2546.8,2546.3,3.92719547]
[1748270912368,0.78531917,2546.8,2546.4,0.90916483]
[1748270912513,0.78532906,2546.8,2546.4,0.90916483]
[1748270913213,0.78532906,2546.8,2546.4,4.83627593]
[1748270913519,0.78525769,2547.0,2546.5,0.8195]
[1748270913846,0.78527871,2546.9,2546.6,1.52706998]
[1748270914050,0.78524832,2547.0,2546.6,1.52706998]
[1748270914412,0.78534229,2546.7,2546.5,1.28612865]
[1748270914833,0.78531343,2546.8,2546.5,1.28612865]
[1748270915309,0.78536087,2546.6,2546.5,0.46662865]
[1748270916459,0.7854534,2546.3,2546.1,0.46662865]
[1748270916761,0.78547922,2546.3,2546.1,0.46662865]
[1748270916945,0.78548425,2546.2,2546.1,0.46662865]
[1748270917953,0.78554595,2546.0,2545.9,0.46662865]
[1748270918736,1.3351527,2546.0,2545.9,0.46662865]
[1748270918936,2.1673527,2546.0,2545.9,0.46662865]
[1748270919339,0.78563402,2545.8,2545.5,0.46662865]
[1748270919570,0.78563402,2545.8,2545.5,0.46369728]
[1748270919749,0.7856403,2545.7,2545.5,0.46369728]
[1748270920983,0.7856403,2545.7,2545.3,10.4074842]
[1748270921559,0.8322,2546.0,2545.3,0.7925]
[1748270921857,0.78576374,2545.3,2545.2,0.38908947]
[1748270922063,0.78574837,2545.4,2545.1,0.7262517]
[1748270922249,0.78574837,2545.4,2545.1,0.1]
[1748270922861,0.78576481,2545.3,2545.1,0.1]
[1748270923188,0.78579286,2545.2,2545.1,0.1]
[1748270923796,1.59109286,2545.2,2545.1,0.1]
[1748270923985,5.75477869,2545.2,2545.1,0.1]
[1748270927901,0.78579286,2545.2,2545.1,0.1]
[1748270928053,0.78573112,2545.4,2545.1,0.1]
[1748270928257,1.61050253,2545.5,2545.1,0.1]
[1748270928258,1.61051024,2545.5,2545.1,0.1]
[1748270928465,0.78578208,2545.3,2545.1,0.1]
[1748270930701,0.78572395,2545.5,2545.1,0.1]
[1748270930865,0.78573167,2545.4,2545.1,0.8873]
[1748270931711,0.78579286,2545.2,2545.1,0.8873]
[1748270932412,0.78577955,2545.3,2545.1,0.8873]
[1748270933203,0.78579286,2545.2,2545.1,0.8873]
[1748270933506,0.78579286,2545.2,2545.1,0.1]
[1748270935907,0.78576457,2545.3,2545.1,0.1]
[1748270935908,0.78577769,2545.3,2545.1,0.1]
[1748270936203,0.78579286,2545.2,2545.1,0.1]
[1748270942026,0.7857771,2545.3,2545.1,0.1]
[1748270942226,0.78574888,2545.4,2545.1,0.1]
[1748270942928,0.78577139,2545.3,2545.1,0.1]
[1748270943116,0.78575432,2545.4,2545.1,0.1]
[1748270943633,0.78576621,2545.3,2545.1,0.1]
[1748270944606,0.75,2545.6,2545.1,0.1]
[1748270944895,0.78575196,2545.4,2545.1,0.1]
[1748270945329,0.78574872,2545.4,2545.1,0.1]
[1748270947145,0.78576373,2545.3,2545.1,0.1]
[1748270947300,0.78574872,2545.4,2545.1,0.1]
[1748270947632,0.78577936,2545.3,2545.1,0.1]
[1748270948442,0.78574964,2545.4,2545.1,0.1]
[1748270949055,0.78576422,2545.3,2545.1,0.1]
[1748270949339,0.78577415,2545.3,2545.1,0.1]
[1748270957146,0.75,2545.6,2545.1,9.66678261]
[1748270957349,4.85724331,2546.5,2545.1,9.66678261]
[1748270957350,0.7914,2545.9,2545.5,8.5559728]
[1748270957660,0.78558022,2545.9,2545.5,8.55593263]
[1748270957871,0.78556124,2546.0,2545.7,4.62753257]
[1748270958009,1.57689853,2546.2,2545.7,4.62753257]
[1748270958205,0.78554862,2546.0,2545.7,4.62753257]
[1748270958405,3.927,2546.1,2545.7,4.62753257]
[1748270958636,0.78549068,2546.2,2545.7,4.62753257]
[1748270958839,0.78545592,2546.3,2545.9,4.62753257]
[1748270959039,4.71245592,2546.3,2545.9,4.62753257]
[1748270959406,0.78545537,2546.3,2546.0,0.7732]
[1748270959663,3.927,2546.4,2546.0,0.7732]
[1748270959664,0.78548543,2546.2,2546.0,0.7732]
[1748270960450,0.7855151,2546.1,2546.0,0.7732]
[1748270960613,0.7855151,2546.1,2545.7,6.58168191]
[1748270960955,0.7855151,2546.1,2545.8,1.86389474]
[1748270961150,0.78543685,2546.4,2546.0,4.62753257]
[1748270961561,0.7855768,2545.9,2545.8,1.05099474]
[1748270961851,0.78566939,2545.6,2545.5,0.6262517]
[1748270962269,3.927,2545.7,2545.5,0.6262517]
[1748270962473,0.78566939,2545.6,2545.5,0.6262517]
[1748270963057,0.78566939,2545.6,2545.3,0.40220296]
[1748270963263,0.78566939,2545.6,2545.2,5.44963257]
[1748270963491,0.78566939,2545.6,2545.2,6.88222516]
[1748270964079,4.71264053,2545.7,2545.2,6.88222516]
[1748270964573,0.78568817,2545.6,2545.2,6.88222516]
[1748270965075,0.78570459,2545.5,2545.2,6.88222516]
[1748270965380,0.78579286,2545.2,2545.1,0.48575527]
[1748270965534,0.78577939,2545.3,2545.1,0.1]
[1748270966946,0.7857795,2545.3,2545.1,0.1]
[1748270968274,0.78574945,2545.4,2545.1,0.1]
[1748270969040,0.78576578,2545.3,2545.1,0.48378634]
[1748270969653,0.78574956,2545.4,2545.1,0.48378634]
[1748270969857,0.7857718,2545.3,2545.1,0.48378634]
[1748270970449,0.78579286,2545.2,2545.1,0.48378634]
[1748270970666,0.78579286,2545.2,2545.1,0.1]
[1748270970865,0.78577852,2545.3,2545.1,0.1]
[1748270973250,0.78573683,2545.4,2545.1,0.1]
[1748270973653,0.23842499,2545.4,2545.1,0.1]
[1748270973856,1.60349286,2545.2,2545.1,0.1]
[1748270975193,0.78578059,2545.3,2545.1,0.1]
[1748270975489,0.78571008,2545.5,2545.1,0.1]
[1748270975692,8.78574979,2545.4,2545.1,0.1]
[1748270976257,1.59944186,2545.7,2545.1,4.46814308]
[1748270976586,8.0,2545.6,2545.1,1.58757194]
[1748270976758,0.7857389,2545.4,2545.1,1.58757194]
[1748270977158,0.78571835,2545.5,2545.1,1.58757194]
[1748270977368,0.78568125,2545.6,2545.2,0.778]
[1748270977567,0.7857022,2545.5,2545.2,0.778]
[1748270977875,0.7857022,2545.5,2545.2,1.40746087]
[1748270978080,0.78571739,2545.5,2545.2,1.40746087]
[1748270978806,0.78573275,2545.4,2545.2,1.40746087]
[1748270978980,0.78573275,2545.4,2545.2,0.778]
[1748270981799,0.78575181,2545.4,2545.2,0.778]
[1748270982107,0.78573112,2545.4,2545.2,0.778]
[1748270982266,0.78575952,2545.4,2545.2,0.778]
[1748270982665,0.78576199,2545.3,2545.2,0.778]
[1748270982863,0.78578517,2545.3,2545.1,0.95868761]
[1748270983101,0.78578099,2545.3,2545.1,1.64916041]
[1748270983299,0.78575086,2545.4,2545.1,1.64916041]
[1748270983523,0.78579286,2545.2,2545.1,1.64916041]
[1748270984107,0.78579286,2545.2,2545.1,0.48916524]
[1748270984408,0.78579286,2545.2,2545.1,0.1]
[1748270996038,0.78566031,2545.7,2545.1,0.1]
[1748270996210,1.54646939,2545.6,2545.1,0.1]
[1748270996414,0.78579286,2545.2,2545.1,0.1]
[1748270998134,0.78578302,2545.3,2545.1,0.1]
[1748270998338,0.78577523,2545.3,2545.1,0.1]
[1748270998550,0.78574876,2545.4,2545.1,0.1]
[1748270998908,0.78576891,2545.3,2545.1,0.1]
[1748270999236,0.78579286,2545.2,2545.1,0.1]
[1748270999534,0.7857434,2545.4,2545.1,0.1]
[1748270999738,0.78578866,2545.3,2545.1,0.1]
[1748271001149,0.78574717,2545.4,2545.1,0.1]
[1748271001308,0.78576213,2545.3,2545.1,0.1]
[1748271001918,0.7857424,2545.4,2545.1,1.80685972]
[1748271002125,0.78574828,2545.4,2545.1,1.80685972]
[1748271002507,4.6878,2545.6,2545.1,0.1]
[1748271002508,0.78579286,2545.2,2545.1,0.1]
[1748271002725,0.78579286,2545.2,2545.1,0.56952237]
[1748271003005,1.61869286,2545.2,2545.1,0.56952237]
[1748271003630,1.61869286,2545.2,2545.1,0.1]
[1748271004644,5.54569286,2545.2,2545.1,0.1]
[1748271005011,6.17883844,2545.2,2545.1,0.1]
[1748271005343,0.78578045,2545.3,2545.1,0.1]
[1748271005542,0.78574519,2545.4,2545.1,0.1]
[1748271005754,0.7589,2545.6,2545.1,0.1]
[1748271006052,0.78573166,2545.4,2545.1,5.51050591]
[1748271006254,0.78576025,2545.4,2545.1,5.51050591]
[1748271006760,0.78576507,2545.3,2545.1,5.51050591]
[1748271006915,0.78576507,2545.3,2545.1,0.8827]
[1748271007357,0.78574613,2545.4,2545.1,0.8827]
[1748271007711,0.78576427,2545.3,2545.1,0.8827]
[1748271007926,0.78566939,2545.6,2545.1,0.8827]
[1748271008141,0.78579286,2545.2,2545.1,0.1]
[1748271009751,0.78577819,2545.3,2545.1,0.1]
[1748271011629,0.8293,2545.9,2545.2,0.8047]
[1748271011835,0.78562189,2545.8,2545.4,8.55644618]
[1748271012045,0.78562189,2545.8,2545.4,4.62780591]
[1748271012370,0.78564068,2545.7,2545.4,5.95681557]
[1748271012559,0.78564068,2545.7,2545.4,1.32900966]
[1748271012731,0.78566973,2545.6,2545.4,1.32900966]
[1748271012919,0.78570025,2545.5,2545.3,8.0]
[1748271013115,0.78571804,2545.5,2545.4,0.46952237]
[1748271014154,0.78563603,2545.8,2545.4,5.1569632]
[1748271014474,0.78563603,2545.8,2545.4,5.38660591]
[1748271014654,0.78558868,2545.9,2545.4,11.48661303]
[1748271014854,0.78561042,2545.8,2545.4,11.48661303]
[1748271015055,0.78561042,2545.8,2545.4,7.55798286]
[1748271015252,0.78565758,2545.7,2545.5,0.46952237]
[1748271015456,0.78566063,2545.7,2545.5,0.46952237]
[1748271015658,0.78566939,2545.6,2545.5,0.46952237]
[1748271016612,0.78565583,2545.7,2545.5,0.46952237]
[1748271016811,0.78565583,2545.7,2545.4,3.39969932]
[1748271018717,0.8214,2546.1,2545.4,3.39969932]
[1748271018921,0.78563036,2545.8,2545.4,2.93017695]
[1748271019087,0.78573112,2545.4,2545.3,0.46952237]
[1748271019292,0.78562142,2545.8,2545.3,8.46952237]
[1748271019492,0.78567184,2545.6,2545.3,0.46952237]
[1748271020994,0.78565738,2545.7,2545.3,0.46952237]
[1748271021605,4.6857,2546.0,2545.3,0.46952237]
[1748271021799,0.7856703,2545.6,2545.3,0.46952237]
[1748271022097,0.78566024,2545.7,2545.3,0.46952237]
[1748271022419,0.78566985,2545.6,2545.3,0.46952237]
[1748271022904,0.78565435,2545.7,2545.3,0.46952237]
[1748271023105,0.78565435,2545.7,2545.3,4.39832961]
[1748271023305,0.78565435,2545.7,2545.3,6.64361989]
[1748271023707,0.78566938,2545.7,2545.3,2.71481265]
[1748271023895,0.78566938,2545.7,2545.3,6.68290452]
[1748271024233,0.78566938,2545.7,2545.3,6.64362059]
[1748271024443,0.7856694,2545.6,2545.3,2.71481265]
[1748271024613,0.78565519,2545.7,2545.4,1.54151171]
[1748271024962,4.71260227,2545.9,2545.4,5.47007951]
[1748271025143,0.78562141,2545.8,2545.4,5.47007951]
[1748271025641,0.78566955,2545.6,2545.4,1.54151171]
[1748271025996,0.78566816,2545.7,2545.4,2.01103408]
[1748271026333,0.78567622,2545.6,2545.4,2.01103408]
[1748271026510,0.78565281,2545.7,2545.4,2.01103408]
[1748271026704,0.78565281,2545.7,2545.5,1.00110341]
[1748271028046,0.78558946,2545.9,2545.6,0.7754]
[1748271028250,0.78561098,2545.8,2545.6,0.7754]
[1748271028601,0.78558852,2545.9,2545.6,0.7754]
[1748271028939,0.78561118,2545.8,2545.6,1.54700975]
[1748271029314,0.78559537,2545.9,2545.6,1.54700975]
[1748271030621,0.78562238,2545.8,2545.6,1.54700975]
[1748271031235,0.78559184,2545.9,2545.6,1.54700975]
[1748271032335,0.78562107,2545.8,2545.6,1.54700975]
[1748271032833,0.78562107,2545.8,2545.6,0.7754]
[1748271034439,0.78562107,2545.8,2545.5,9.47062578]
[1748271034637,0.78566939,2545.6,2545.5,0.46952237]
[1748271035436,0.78566939,2545.6,2545.3,1.09577407]
[1748271035639,0.78571702,2545.5,2545.3,0.46952237]
[1748271036343,0.78568195,2545.6,2545.3,0.46952237]
[1748271036538,0.78568195,2545.6,2545.3,9.85707226]
[1748271037041,0.78568195,2545.6,2545.4,0.46952237]
[1748271037739,4.71162421,2545.8,2545.4,0.46952237]
[1748271037939,4.71162421,2545.8,2545.5,0.7526]
[1748271039531,0.78564751,2545.7,2545.5,1.22212237]
[1748271039829,0.78564751,2545.7,2545.5,2.32582708]
[1748271040344,0.7919,2546.3,2545.5,2.32582708]
[1748271040548,0.7855635,2546.0,2545.6,8.0]
[1748271041216,0.7855635,2546.0,2545.6,11.92833883]
[1748271041427,0.78553235,2546.1,2545.6,11.92833883]
[1748271041647,4.71153235,2546.1,2545.7,2.28104685]
[1748271041826,0.7855002,2546.2,2545.7,6.67875752]
[1748271042145,0.78551952,2546.1,2545.8,8.8073]
[1748271043025,0.78551952,2546.1,2545.8,9.27682237]
[1748271043424,0.78555419,2546.0,2545.8,8.46952237]
[1748271043651,0.78555238,2546.0,2545.8,8.46952237]
[1748271044777,0.78553316,2546.1,2545.8,10.08319831]
[1748271045961,0.78551702,2546.1,2545.8,10.08319831]
[1748271046167,0.78551555,2546.1,2545.8,10.08319831]
[1748271046979,0.7855151,2546.1,2545.8,10.08319831]
[1748271047165,0.7855768,2545.9,2545.8,0.46952237]
[1748271048682,0.78560766,2545.8,2545.7,0.46952237]
[1748271049686,0.7855768,2545.9,2545.5,8.46952237]
[1748271049687,0.78559558,2545.9,2545.5,8.46952237]
[1748271049887,0.78559558,2545.9,2545.5,13.09732828]
[1748271050571,0.78559678,2545.9,2545.5,13.09732828]
[1748271050742,0.78559678,2545.9,2545.6,1.78110508]
[1748271050940,0.7785,2546.2,2545.7,5.38340591]
[1748271051143,0.78553666,2546.1,2545.7,5.38340591]
[1748271051570,0.78554724,2546.0,2545.7,5.38340591]
[1748271051984,0.7855768,2545.9,2545.8,0.46952237]
[1748271052679,0.78267543,2545.9,2545.8,1.63277028]
[1748271052901,0.78555877,2546.0,2545.8,1.63277028]
[1748271054255,1.56709711,2546.5,2545.9,8.55561652]
[1748271054456,0.78544261,2546.4,2546.0,0.8245]
[1748271054674,0.78547067,2546.3,2546.0,2.31859195]
[1748271054862,0.7854989,2546.2,2546.0,2.31859195]
[1748271055080,0.7854989,2546.2,2546.0,0.8245]
[1748271055261,0.78547162,2546.3,2546.0,0.8245]
[1748271055982,0.78547162,2546.3,2546.0,1.29402237]
[1748271056184,0.78548532,2546.2,2546.0,1.29402237]
[1748271056407,0.7855151,2546.1,2546.0,1.29402237]
[1748271056611,4.71139288,2546.5,2546.0,1.63818058]
[1748271056808,4.71139288,2546.5,2546.0,0.86704779]
[1748271056809,0.7855151,2546.1,2546.0,0.86704779]
[1748271057116,0.78554595,2546.0,2545.9,0.46952237]
[1748271057408,1.59704595,2546.0,2545.9,0.46952237]
[1748271058472,1.59704595,2546.0,2545.4,0.46952237]
[1748271058672,1.59704595,2546.0,2545.4,1.45449978]
[1748271058673,0.78568618,2545.6,2545.4,1.45449978]
[1748271060029,0.78562115,2545.8,2545.4,1.45449978]
[1748271060232,0.78567587,2545.6,2545.4,9.45449978]
[1748271060702,0.78570025,2545.5,2545.4,9.45449978]
[1748271060901,0.78570025,2545.5,2545.4,8.98497741]
[1748271061837,0.78570025,2545.5,2545.4,0.98497741]
[1748271062137,0.78570025,2545.5,2545.4,0.47018179]
[1748271064899,1.56380025,2545.5,2545.4,0.47018179]
[1748271065316,2.11380025,2545.5,2545.4,0.47018179]
[1748271065845,1.33579286,2545.2,2545.1,0.7262517]
[1748271066147,19.03620426,2545.2,2545.1,0.1]
[1748271066918,0.78610172,2544.2,2544.1,0.1]
[1748271067114,5.51260172,2544.2,2544.1,0.1]
[1748271067346,4.71310172,2544.2,2544.1,0.1]
[1748271067817,9.97077539,2544.2,2544.1,0.1]
[1748271068015,10.77027539,2544.2,2544.1,0.1]
[1748271069574,19.32027539,2544.2,2544.1,0.1]
[1748271069933,24.336396,2544.2,2544.1,0.1]
[1748271070571,1.58591082,2543.2,2543.1,0.1]
[1748271070721,5.75114034,2543.2,2543.1,0.1]
[1748271071374,1.58591082,2543.2,2543.1,0.1]
[1748271071527,4.71441082,2543.2,2543.1,0.1]
[1748271072021,0.78641082,2543.2,2543.1,0.1]
[1748271072436,0.8158,2543.8,2543.1,0.1]
[1748271072636,0.78630807,2543.6,2543.1,0.1]
[1748271072836,0.78632832,2543.5,2543.2,0.7664]
[1748271073125,0.78637389,2543.4,2543.2,0.7664]
[1748271073521,0.78627516,2543.7,2543.2,8.7664]
[1748271073763,0.78629242,2543.6,2543.2,18.41032652]
[1748271073930,0.78616539,2544.0,2543.2,18.41032652]
[1748271073931,0.78619442,2543.9,2543.2,8.7664]
[1748271074131,0.7863508,2543.4,2543.2,9.87798104]
[1748271074346,0.78619442,2543.9,2543.2,9.87798104]
[1748271074543,0.78632926,2543.5,2543.2,9.87798104]
[1748271075076,0.78635119,2543.4,2543.2,9.87798104]
[1748271075269,0.78633261,2543.5,2543.2,9.87798104]
[1748271075670,0.78637585,2543.4,2543.2,9.87798104]
[1748271075971,0.7863799,2543.3,2543.2,0.7664]
[1748271076777,0.7863799,2543.3,2543.1,0.1]
[1748271076928,0.78638624,2543.3,2543.1,0.1]
[1748271077438,0.78641082,2543.2,2543.1,0.1]
[1748271077635,0.78623597,2543.8,2543.2,0.8275]
[1748271077838,0.78627397,2543.7,2543.3,8.89275]
[1748271078042,0.78624867,2543.8,2543.3,12.82461951]
[1748271078242,0.7909,2544.7,2543.6,8.7732]
[1748271078436,0.7909,2545.1,2544.0,3.93081761]
[1748271078651,0.78599332,2544.6,2544.2,8.0]
[1748271078864,0.78585461,2545.0,2544.3,0.03929955]
[1748271079098,0.7860235,2544.5,2544.2,8.0]
[1748271080592,0.78607082,2544.3,2544.2,8.0]
[1748271081792,0.78605405,2544.4,2544.2,8.0]
[1748271081953,0.78607082,2544.3,2544.2,8.0]
[1748271082158,0.8215,2544.6,2543.9,0.7732]
[1748271082368,0.78615085,2544.1,2543.9,0.7732]
[1748271083656,0.78611251,2544.2,2543.9,0.7732]
[1748271084270,0.78613784,2544.1,2543.9,0.7732]
[1748271084604,0.78614314,2544.1,2543.9,0.7732]
[1748271084958,0.78611717,2544.2,2543.9,0.7732]
[1748271085195,0.78611717,2544.2,2543.9,1.66464535]
[1748271085396,0.78608719,2544.3,2543.9,1.66464535]
[1748271086073,0.78610335,2544.2,2543.9,1.66464535]
[1748271086466,0.78609123,2544.3,2543.9,1.66464535]
[1748271086675,0.78609302,2544.3,2543.9,13.59559186]
[1748271086870,0.78605391,2544.4,2544.0,2.7170572]
[1748271087105,0.78601192,2544.5,2543.9,9.66464535]
[1748271087290,0.78597978,2544.6,2543.9,13.59559115]
[1748271087487,0.78602585,2544.5,2544.0,3.9307993]
[1748271087692,0.7859939,2544.6,2544.2,0.7685]
[1748271087873,0.78605894,2544.4,2544.2,0.7685]
[1748271088079,0.78612577,2544.2,2544.1,8.0]
[1748271088278,0.78612577,2544.2,2543.9,1.70304535]
[1748271088521,0.78607688,2544.3,2543.9,5.91304535]
[1748271088672,0.78614685,2544.1,2543.9,5.91304535]
[1748271088870,0.78591637,2544.8,2543.9,5.91304535]
[1748271089085,0.78609064,2544.3,2543.9,13.91304535]
[1748271089284,0.78610178,2544.2,2543.9,13.91304535]
[1748271089492,0.78611686,2544.2,2543.9,13.91304535]
[1748271089706,0.78594726,2544.7,2543.9,5.91304535]
[1748271089878,0.78616352,2544.0,2543.9,0.8116]
[1748271090317,0.78616352,2544.0,2543.9,8.8116]
[1748271090810,0.78619442,2543.9,2543.8,12.21]
[1748271091508,0.78619442,2543.9,2543.8,8.0]
[1748271092174,0.78625624,2543.7,2543.5,0.8135]
[1748271092374,0.78640205,2543.3,2543.2,0.8135]
[1748271092604,0.78641082,2543.2,2543.1,0.1]
[1748271092803,0.78641082,2543.2,2543.1,0.42825394]
[1748271094437,0.78636044,2543.4,2543.1,0.1]
[1748271094605,0.78641082,2543.2,2543.1,0.1]
[1748271098141,0.78641082,2543.2,2543.1,0.09709862]
[1748271103157,0.7971,2543.6,2543.1,0.09709862]
[1748271103327,0.78634226,2543.5,2543.2,0.03931654]
[1748271103531,0.78634226,2543.5,2543.3,0.8024]
[1748271103848,0.78633221,2543.5,2543.3,0.8024]
[1748271104863,0.7519,2544.0,2543.3,18.44632652]
[1748271105031,0.78622633,2543.8,2543.3,12.73423654]
[1748271105232,0.78622633,2543.8,2543.5,8.0]
[1748271106264,0.78622633,2543.8,2543.5,10.65860694]
[1748271106467,1.55916804,2544.4,2543.5,10.65860694]
[1748271106767,0.78621553,2543.9,2543.6,0.7558]
[1748271107171,0.78617657,2544.0,2543.6,0.7558]
[1748271107583,0.78620018,2543.9,2543.6,8.7558]
[1748271107871,0.78620018,2543.9,2543.6,11.67559648]
[1748271108243,0.7861456,2544.1,2543.6,11.67559648]
[1748271108244,0.78616508,2544.0,2543.6,11.67559648]
[1748271108568,0.78601345,2544.5,2543.9,3.93093359]
[1748271108769,0.774,2544.7,2544.1,11.93055726]
[1748271108971,0.78599579,2544.6,2544.1,11.93055726]
[1748271109194,0.774,2544.9,2544.2,1.00915407]
[1748271109397,0.78600352,2544.6,2544.1,12.33126301]
[1748271109712,0.78601511,2544.5,2544.1,12.33126301]
[1748271109917,0.78610172,2544.2,2544.1,0.40070575]
[1748271110071,0.78608739,2544.3,2544.0,8.8268]
[1748271110457,0.78608872,2544.3,2544.0,0.8268]
[1748271110898,0.78605378,2544.4,2544.0,0.8268]
[1748271111061,0.78605378,2544.4,2544.1,8.03930268]
[1748271111256,0.78605378,2544.4,2544.1,8.0]
[1748271111801,0.78598885,2544.6,2544.1,8.39386817]
[1748271112093,0.78604114,2544.4,2544.1,12.60186817]
[1748271112603,0.78605754,2544.4,2544.1,12.60186817]
[1748271113295,0.78606193,2544.4,2544.1,12.60186817]
[1748271114098,0.78606193,2544.4,2544.0,2.49568512]
[1748271114099,0.78610172,2544.2,2544.0,0.8268]
[1748271114261,0.78611146,2544.2,2543.8,0.7732]
[1748271114460,0.78605209,2544.4,2543.8,0.7732]
[1748271114461,0.78608378,2544.3,2543.8,6.45811713]
[1748271115359,3.929,2544.8,2544.1,8.0]
[1748271115555,0.78608527,2544.3,2543.8,1.75387316]
[1748271115759,0.78609564,2544.3,2543.8,0.8073]
[1748271115996,0.78613331,2544.1,2543.8,0.8073]
[1748271116498,0.7861177,2544.2,2543.8,0.8073]
[1748271116712,0.7861177,2544.2,2543.9,8.0]
[1748271117401,0.78608642,2544.3,2543.9,8.0]
[1748271117599,0.78608642,2544.3,2543.9,5.20476015]
[1748271117958,0.78605343,2544.4,2543.9,13.20476015]
[1748271118999,0.7614,2544.9,2544.1,8.0]
[1748271119251,0.7860239,2544.5,2544.1,8.0]
[1748271121220,0.78601263,2544.5,2544.2,0.81]
[1748271121508,0.78599417,2544.6,2544.2,0.81]
[1748271121812,0.78600933,2544.5,2544.2,0.81]
[1748271122176,0.78604264,2544.4,2544.2,0.81]
[1748271122873,0.8229,2545.1,2544.2,10.16330509]
[1748271123068,0.7858078,2545.2,2544.7,3.92965593]
[1748271123303,0.78581009,2545.2,2544.7,3.92966738]
[1748271123501,0.78581009,2545.2,2544.7,8.86412581]
[1748271123676,0.78578437,2545.3,2544.8,3.92947588]
[1748271123890,0.78579932,2545.2,2544.9,0.7556]
[1748271124315,0.78575217,2545.4,2545.0,0.03928901]
[1748271124612,0.78575217,2545.4,2545.0,0.20095854]
[1748271124785,0.78576306,2545.3,2544.9,0.7556]
[1748271124985,5.89880897,2545.7,2545.1,8.0]
[1748271125214,5.89880897,2545.7,2544.9,0.7556]
[1748271125519,0.78572136,2545.5,2545.1,8.0]
[1748271125673,0.78566987,2545.6,2545.1,11.92911691]
[1748271125878,1.97080897,2545.7,2545.2,0.79488576]
[1748271126112,1.97080897,2545.7,2545.2,0.7556]
[1748271126417,1.97080897,2545.7,2545.3,3.92880461]
[1748271126909,0.78562134,2545.8,2545.3,3.92880461]
[1748271127312,0.1,2545.9,2545.4,3.92863658]
[1748271127529,0.78543833,2546.4,2545.9,3.9278303]
[1748271127814,1.97080897,2546.5,2546.0,8.03927184]
[1748271128014,2.75620911,2546.5,2546.1,0.7556]
[1748271128229,0.78542878,2546.4,2546.1,0.7556]
[1748271128734,0.78542878,2546.4,2546.1,1.5328655]
[1748271128935,0.78545448,2546.3,2546.1,1.5328655]
[1748271129121,0.78545448,2546.3,2546.1,0.7556]
[1748271129301,0.78543889,2546.4,2546.1,0.7556]
[1748271129883,2.75620656,2546.5,2546.1,0.7556]
[1748271130083,0.78544368,2546.4,2546.1,0.7556]
[1748271130683,0.78539393,2546.5,2545.8,8.7612]
[1748271130883,0.78540273,2546.5,2545.8,12.9652]
[1748271131083,0.78549929,2546.2,2545.8,15.09213361]
[1748271131312,0.78545645,2546.3,2545.8,19.02016043]
[1748271131507,0.78548462,2546.2,2545.8,15.09213361]
[1748271131829,0.78548454,2546.2,2545.8,19.02014477]
[1748271132030,0.78551514,2546.1,2545.8,10.88813361]
[1748271132485,0.8143,2546.3,2545.6,12.204]
[1748271132802,0.78554348,2546.1,2545.6,12.204]
[1748271133007,0.78554348,2546.1,2545.6,16.13233999]
[1748271133212,0.78555681,2546.0,2545.6,12.59867589]
[1748271133410,0.78553351,2546.1,2545.6,18.2560845]
[1748271133794,0.78556379,2546.0,2545.6,10.12375348]
[1748271134000,0.78559807,2545.9,2545.6,14.32775348]
[1748271134401,1.59975505,2546.3,2545.6,10.12375348]
[1748271134724,0.78559114,2545.9,2545.6,0.39467589]
[1748271134886,0.78559114,2545.9,2545.5,12.69357037]
[1748271135087,0.78559114,2545.9,2545.5,16.89757037]
[1748271135519,0.78560971,2545.8,2545.5,12.9691]
[1748271135724,0.78560522,2545.9,2545.5,12.9691]
[1748271136029,0.8332,2546.0,2545.2,0.814]
[1748271136325,0.8332,2546.0,2545.2,0.39722698]
[1748271136623,0.7857528,2545.4,2545.1,0.46768666]
[1748271137488,0.7857528,2545.4,2545.0,9.02718689]
[1748271137795,0.78582245,2545.2,2545.0,10.10891087]
[1748271138008,0.78566939,2545.6,2545.0,11.92912461]
[1748271138242,0.78566939,2545.6,2545.2,8.0]
[1748271138520,0.78564753,2545.7,2545.3,0.8284866]
[1748271138721,0.78570461,2545.5,2545.3,0.7892]
[1748271138922,0.78568398,2545.6,2545.3,0.7892]
[1748271139139,0.78561509,2545.8,2545.3,2.06102258]
[1748271139429,0.7856984,2545.6,2545.3,2.06102258]
[1748271139622,0.78565629,2545.7,2545.3,2.06102258]
[1748271139990,0.78567175,2545.6,2545.3,2.06102258]
[1748271141040,0.78554595,2546.0,2545.3,2.06102258]
[1748271141339,0.78562543,2545.8,2545.4,8.24442531]
[1748271142318,0.78562543,2545.8,2545.4,12.17305556]
[1748271142521,0.78558874,2545.9,2545.4,12.17305556]
[1748271142937,0.7856093,2545.8,2545.4,12.17305556]
[1748271143105,0.7856093,2545.8,2545.4,8.24442531]
[1748271143438,0.78558814,2545.9,2545.5,2.38780955]
[1748271143823,0.78561201,2545.8,2545.5,2.38780955]
[1748271144245,0.78558833,2545.9,2545.5,2.38780955]
[1748271144553,0.78560864,2545.8,2545.5,10.38780955]
[1748271148150,0.78558657,2545.9,2545.5,14.31626298]
[1748271148314,0.78548425,2546.2,2545.7,3.92816469]
[1748271148515,0.78542255,2546.4,2545.8,11.96722104]
[1748271148848,0.78542255,2546.4,2545.8,3.92797481]
[1748271148849,0.78548561,2546.2,2545.8,3.92797481]
[1748271149054,0.78548561,2546.2,2545.9,1.19279748]
[1748271149349,0.78547066,2546.3,2545.9,1.19279748]
[1748271149546,0.78544294,2546.4,2545.9,1.19279748]
[1748271149708,0.78548426,2546.2,2545.9,1.19279748]
[1748271152359,0.7854534,2546.3,2545.9,1.19279748]
[1748271152524,0.7854534,2546.3,2546.0,0.51208042]
[1748271152860,0.7578,2546.5,2546.0,0.51208042]
[1748271152861,0.78548523,2546.2,2546.0,0.51208042]
[1748271153035,0.7855151,2546.1,2545.9,1.19279748]
[1748271153238,0.78554595,2546.0,2545.9,1.19279748]
[1748271153417,0.78558999,2545.9,2545.7,8.46768666]
[1748271153613,0.78556275,2546.0,2545.7,8.46768666]
[1748271153855,0.78556275,2546.0,2545.8,0.46768666]
[1748271154533,0.78553305,2546.1,2545.8,0.46768666]
[1748271154738,0.78548723,2546.2,2545.8,0.46768666]
[1748271154921,0.78548723,2546.2,2545.8,3.32034312]
[1748271155661,0.78548723,2546.2,2545.9,0.46768666]
[1748271156035,0.78551512,2546.1,2545.9,0.46768666]
[1748271157359,0.78554595,2546.0,2545.9,0.46768666]
[1748271157561,1.61724595,2546.0,2545.9,0.46768666]